[Event "Early-Titled-Tuesday-Blitz-October-10-2023"]
[Site "Chess.com"]
[Date "2023.10.10"]
[Round "5"]
[White "Cayse"]
[Black "Russian_berezka"]
[Result "1-0"]
[WhiteElo "2840"]
[BlackElo "2648"]
[TimeControl "180+1"]
[EndTime "8:54:33 PDT"]
[Termination "Cayse won by resignation"]

1. e4 {[%clk 0:02:15.1]} 1... e5 {[%clk 0:02:59]} 2. Nf3 {[%clk 0:02:14.9]} 2...
Nc6 {[%clk 0:02:58.8]} 3. Nc3 {[%clk 0:02:15.5]} 3... Nf6 {[%clk 0:02:58.2]} 4.
a4 {[%clk 0:02:16.1]} 4... h6 {[%clk 0:02:53.8]} 5. Bb5 {[%clk 0:02:10.6]} 5...
Bb4 {[%clk 0:02:10.4]} 6. O-O {[%clk 0:01:54.4]} 6... O-O {[%clk 0:02:07.2]} 7.
d3 {[%clk 0:01:51.4]} 7... d6 {[%clk 0:02:06]} 8. Ne2 {[%clk 0:01:51.4]} 8... a5
{[%clk 0:01:58.6]} 9. Ng3 {[%clk 0:01:49.2]} 9... Bc5 {[%clk 0:01:41.3]} 10. c3
{[%clk 0:01:48.7]} 10... Bb6 {[%clk 0:01:32.1]} 11. h3 {[%clk 0:01:40.2]} 11...
Ne7 {[%clk 0:01:31]} 12. Re1 {[%clk 0:01:33.6]} 12... c6 {[%clk 0:01:26.2]} 13.
Bc4 {[%clk 0:01:33.4]} 13... Ng6 {[%clk 0:01:25.4]} 14. Bb3 {[%clk 0:01:25.2]}
14... Re8 {[%clk 0:01:21]} 15. d4 {[%clk 0:01:16.7]} 15... d5 {[%clk 0:01:02.1]}
16. exd5 {[%clk 0:01:13.3]} 16... e4 {[%clk 0:00:57.6]} 17. Ne5 {[%clk 0:01:05]}
17... cxd5 {[%clk 0:00:47.3]} 18. Nxg6 {[%clk 0:01:04.6]} 18... fxg6 {[%clk
0:00:47.6]} 19. Bf4 {[%clk 0:01:05.2]} 19... Kh7 {[%clk 0:00:45.6]} 20. Be5
{[%clk 0:00:35.4]} 20... Bc7 {[%clk 0:00:42.1]} 21. f4 {[%clk 0:00:34.5]} 21...
Be6 {[%clk 0:00:34.6]} 22. Qd2 {[%clk 0:00:32.2]} 22... Nd7 {[%clk 0:00:33]} 23.
Rf1 {[%clk 0:00:28.5]} 23... Nxe5 {[%clk 0:00:31.2]} 24. fxe5 {[%clk 0:00:27.3]}
24... Qh4 {[%clk 0:00:30.2]} 25. Qe3 {[%clk 0:00:26.8]} 25... Rf8 {[%clk
0:00:29.9]} 26. Nxe4 {[%clk 0:00:26.4]} 26... Qe7 {[%clk 0:00:06.6]} 27. Nc5
{[%clk 0:00:25.5]} 27... b6 {[%clk 0:00:05.2]} 28. Nxe6 {[%clk 0:00:22]} 28...
Qxe6 {[%clk 0:00:06.1]} 29. Bc2 {[%clk 0:00:20.1]} 29... Rae8 {[%clk 0:00:04.3]}
30. Qd3 {[%clk 0:00:19.5]} 30... Bd8 {[%clk 0:00:04.4]} 31. Qb5 {[%clk
0:00:17.9]} 31... Be7 {[%clk 0:00:03]} 32. Bb3 {[%clk 0:00:17.7]} 32... Rd8
{[%clk 0:00:02.6]} 33. Rxf8 {[%clk 0:00:17.5]} 33... Bxf8 {[%clk 0:00:03.5]} 34.
Rf1 {[%clk 0:00:17.1]} 34... Be7 {[%clk 0:00:03.8]} 35. Qe2 {[%clk 0:00:16.2]}
35... Rf8 {[%clk 0:00:03.4]} 36. Rxf8 {[%clk 0:00:15.8]} 36... Bxf8 {[%clk
0:00:04.3]} 37. Qf3 {[%clk 0:00:16.1]} 37... Be7 {[%clk 0:00:04.5]} 38. Bxd5
{[%clk 0:00:16]} 38... Qd7 {[%clk 0:00:03.3]} 39. Qf7 {[%clk 0:00:16]} 39... h5
{[%clk 0:00:02.4]} 40. Qe6 {[%clk 0:00:14.7]} 40... Qxe6 {[%clk 0:00:02.3]} 41.
Bxe6 {[%clk 0:00:14.7]} 41... g5 {[%clk 0:00:02.9]} 42. d5 {[%clk 0:00:13.4]}
42... g6 {[%clk 0:00:03.2]} 43. d6 {[%clk 0:00:13.3]} 43... Bd8 {[%clk
0:00:03.8]} 44. Bd5 {[%clk 0:00:13.5]} 44... Kg7 {[%clk 0:00:03.4]} 45. e6
{[%clk 0:00:13.8]} 45... Kf6 {[%clk 0:00:02.6]} 46. e7 {[%clk 0:00:14]} 46...
Bxe7 {[%clk 0:00:03.3]} 47. dxe7 {[%clk 0:00:14.9]} 47... Kxe7 {[%clk
0:00:03.9]} 48. Be4 {[%clk 0:00:15.5]} 48... Kf6 {[%clk 0:00:04]} 49. Kf2 {[%clk
0:00:15.8]} 49... Ke5 {[%clk 0:00:04.5]} 50. Bxg6 {[%clk 0:00:15.4]} 50... h4
{[%clk 0:00:05.4]} 51. Bd3 {[%clk 0:00:15.4]} 1-0

[Event "Early-Titled-Tuesday-Blitz-October-10-2023"]
[Site "Chess.com"]
[Date "2023.10.10"]
[Round "5"]
[White "tarno17"]
[Black "Irina_Mikhaylova"]
[Result "0-1"]
[WhiteElo "2145"]
[BlackElo "2300"]
[TimeControl "180+1"]
[EndTime "8:54:34 PDT"]
[Termination "Irina_Mikhaylova won by resignation"]

1. e4 {[%clk 0:03:00.9]} 1... c5 {[%clk 0:02:59.7]} 2. Nf3 {[%clk 0:02:59]} 2...
Nc6 {[%clk 0:03:00]} 3. Bb5 {[%clk 0:02:58.3]} 3... e6 {[%clk 0:02:59.9]} 4. O-O
{[%clk 0:02:58.3]} 4... Nge7 {[%clk 0:02:59.8]} 5. c3 {[%clk 0:02:57.9]} 5... d5
{[%clk 0:02:57.3]} 6. exd5 {[%clk 0:02:56.9]} 6... Qxd5 {[%clk 0:02:57.5]} 7. d4
{[%clk 0:02:48]} 7... cxd4 {[%clk 0:02:57.5]} 8. Bxc6+ {[%clk 0:02:45.9]} 8...
Nxc6 {[%clk 0:02:56.9]} 9. Nxd4 {[%clk 0:02:45.2]} 9... Bc5 {[%clk 0:02:11.4]}
10. Nxc6 {[%clk 0:02:06.7]} 10... Qxc6 {[%clk 0:02:11]} 11. Nd2 {[%clk
0:01:50.8]} 11... b6 {[%clk 0:01:57.6]} 12. Qf3 {[%clk 0:01:40.9]} 12... Bb7
{[%clk 0:01:51.4]} 13. Qxc6+ {[%clk 0:01:40.7]} 13... Bxc6 {[%clk 0:01:51.6]}
14. Nb3 {[%clk 0:01:35.3]} 14... Be7 {[%clk 0:01:42]} 15. Nd4 {[%clk 0:01:26]}
15... Bd5 {[%clk 0:01:41.5]} 16. Nb5 {[%clk 0:01:13.5]} 16... O-O {[%clk
0:01:39.1]} 17. Nc7 {[%clk 0:01:12.6]} 17... Rad8 {[%clk 0:01:38.7]} 18. Nxd5
{[%clk 0:01:12.1]} 18... Rxd5 {[%clk 0:01:38.9]} 19. Be3 {[%clk 0:01:07.3]}
19... Rfd8 {[%clk 0:01:38.4]} 20. Rfe1 {[%clk 0:01:03.9]} 20... e5 {[%clk
0:01:32.9]} 21. Kf1 {[%clk 0:01:00.3]} 21... f5 {[%clk 0:01:32.6]} 22. g3 {[%clk
0:00:21.7]} 22... Bc5 {[%clk 0:01:17]} 23. Bxc5 {[%clk 0:00:21]} 23... bxc5
{[%clk 0:01:17.2]} 24. Re2 {[%clk 0:00:19.9]} 24... e4 {[%clk 0:01:14.5]} 25.
Rae1 {[%clk 0:00:18.5]} 25... c4 {[%clk 0:01:06.6]} 26. Kg2 {[%clk 0:00:18.3]}
26... Kf7 {[%clk 0:01:04.2]} 27. f3 {[%clk 0:00:16.6]} 27... exf3+ {[%clk
0:01:03.8]} 28. Kxf3 {[%clk 0:00:16.6]} 28... R8d7 {[%clk 0:01:04.4]} 29. Re5
{[%clk 0:00:13]} 29... g6 {[%clk 0:01:02.4]} 30. Rxd5 {[%clk 0:00:10.4]} 30...
Rxd5 {[%clk 0:01:02.6]} 31. Re2 {[%clk 0:00:10.9]} 31... a5 {[%clk 0:00:49.7]}
32. b3 {[%clk 0:00:09.2]} 32... Rd3+ {[%clk 0:00:47.1]} 33. Re3 {[%clk
0:00:09.3]} 33... Rd2 {[%clk 0:00:41.3]} 34. Re2 {[%clk 0:00:09.4]} 34... Rd5
{[%clk 0:00:29.8]} 35. Re3 {[%clk 0:00:04.7]} 35... Rc5 {[%clk 0:00:28.9]} 36.
g4 {[%clk 0:00:03]} 36... Kf6 {[%clk 0:00:28.6]} 37. gxf5 {[%clk 0:00:03.2]}
37... Rxf5+ {[%clk 0:00:26.8]} 38. Ke4 {[%clk 0:00:02.4]} 38... cxb3 {[%clk
0:00:17.5]} 39. axb3 {[%clk 0:00:03.3]} 39... Re5+ {[%clk 0:00:17.2]} 40. Kd4
{[%clk 0:00:03.9]} 40... Rxe3 {[%clk 0:00:16.5]} 41. Kxe3 {[%clk 0:00:04.8]}
41... Ke5 {[%clk 0:00:16.9]} 42. b4 {[%clk 0:00:04.9]} 42... a4 {[%clk
0:00:16.8]} 43. Kd3 {[%clk 0:00:04.5]} 43... g5 {[%clk 0:00:16.4]} 44. c4 {[%clk
0:00:03.3]} 44... h5 {[%clk 0:00:16.1]} 45. b5 {[%clk 0:00:02.6]} 45... Kd6
{[%clk 0:00:16.1]} 46. Kd4 {[%clk 0:00:02.9]} 46... g4 {[%clk 0:00:15.5]} 47.
c5+ {[%clk 0:00:03.4]} 47... Kc7 {[%clk 0:00:15.9]} 48. b6+ {[%clk 0:00:02.3]}
48... Kc6 {[%clk 0:00:16]} 49. Kc4 {[%clk 0:00:02.3]} 49... h4 {[%clk
0:00:16.1]} 50. Kb4 {[%clk 0:00:02.2]} 50... g3 {[%clk 0:00:16.1]} 0-1

[Event "Early-Titled-Tuesday-Blitz-October-10-2023"]
[Site "Chess.com"]
[Date "2023.10.10"]
[Round "5"]
[White "DanielTitichoca"]
[Black "AvitalBor"]
[Result "0-1"]
[WhiteElo "2629"]
[BlackElo "2819"]
[TimeControl "180+1"]
[EndTime "8:54:38 PDT"]
[Termination "AvitalBor won by resignation"]

1. Nf3 {[%clk 0:03:00.9]} 1... c5 {[%clk 0:02:58.9]} 2. g3 {[%clk 0:02:59.8]}
2... Nc6 {[%clk 0:02:55.3]} 3. Bg2 {[%clk 0:03:00.7]} 3... e5 {[%clk 0:02:51.3]}
4. O-O {[%clk 0:02:59.3]} 4... d5 {[%clk 0:02:51.3]} 5. d3 {[%clk 0:02:57.7]}
5... Nf6 {[%clk 0:02:50.8]} 6. Bg5 {[%clk 0:02:56.2]} 6... Be6 {[%clk
0:02:50.1]} 7. Nc3 {[%clk 0:02:41.5]} 7... Be7 {[%clk 0:02:45.3]} 8. Bxf6 {[%clk
0:02:40]} 8... Bxf6 {[%clk 0:02:44.9]} 9. e4 {[%clk 0:02:40.6]} 9... d4 {[%clk
0:02:44.4]} 10. Nd5 {[%clk 0:02:39.9]} 10... O-O {[%clk 0:02:43.7]} 11. Re1
{[%clk 0:02:36.8]} 11... g6 {[%clk 0:02:37]} 12. c4 {[%clk 0:02:30.7]} 12... Bg7
{[%clk 0:02:36.2]} 13. Qd2 {[%clk 0:02:21.5]} 13... h6 {[%clk 0:02:34.9]} 14. a3
{[%clk 0:02:17.7]} 14... a5 {[%clk 0:02:32.8]} 15. b3 {[%clk 0:02:18.3]} 15...
Kh7 {[%clk 0:02:27.5]} 16. h4 {[%clk 0:02:10.1]} 16... Rb8 {[%clk 0:02:24.5]}
17. Rab1 {[%clk 0:02:03.2]} 17... b5 {[%clk 0:02:21.8]} 18. Rec1 {[%clk
0:01:58.5]} 18... b4 {[%clk 0:02:19.9]} 19. axb4 {[%clk 0:01:55.4]} 19... axb4
{[%clk 0:02:17.3]} 20. Ra1 {[%clk 0:01:55.1]} 20... Ra8 {[%clk 0:02:09.5]} 21.
Qb2 {[%clk 0:01:48.7]} 21... f5 {[%clk 0:01:53]} 22. h5 {[%clk 0:01:35.6]} 22...
g5 {[%clk 0:01:50.9]} 23. exf5 {[%clk 0:01:32.8]} 23... Bxf5 {[%clk 0:01:51.8]}
24. Qe2 {[%clk 0:01:31.7]} 24... Ra3 {[%clk 0:01:33.8]} 25. Nd2 {[%clk
0:01:30.2]} 25... Qa5 {[%clk 0:01:27]} 26. Rab1 {[%clk 0:01:20.2]} 26... Kh8
{[%clk 0:01:25.4]} 27. Ne4 {[%clk 0:01:11.2]} 27... Ra2 {[%clk 0:01:22.8]} 28.
Rc2 {[%clk 0:01:07.3]} 28... Rxc2 {[%clk 0:01:08.4]} 29. Qxc2 {[%clk 0:01:06.3]}
29... Bg4 {[%clk 0:01:08.7]} 30. Nd6 {[%clk 0:00:55.4]} 30... Bxh5 {[%clk
0:01:05.2]} 31. Re1 {[%clk 0:00:41.6]} 31... Nd8 {[%clk 0:00:49.1]} 32. f4
{[%clk 0:00:18.8]} 32... exf4 {[%clk 0:00:45.1]} 33. gxf4 {[%clk 0:00:18.8]}
33... gxf4 {[%clk 0:00:44]} 34. Qf2 {[%clk 0:00:16.1]} 34... Qa6 {[%clk
0:00:38.5]} 35. Ne4 {[%clk 0:00:13.5]} 35... f3 {[%clk 0:00:37.4]} 36. Bh3
{[%clk 0:00:11.1]} 36... Ne6 {[%clk 0:00:27.6]} 37. Qh4 {[%clk 0:00:07.9]} 37...
Bg6 {[%clk 0:00:24.4]} 38. Nf2 {[%clk 0:00:05.3]} 38... Ng5 {[%clk 0:00:23.8]}
39. Ne7 {[%clk 0:00:05.1]} 39... Bh7 {[%clk 0:00:21.5]} 40. Bf1 {[%clk
0:00:05.1]} 40... Qa2 {[%clk 0:00:20.6]} 41. Nd5 {[%clk 0:00:03.2]} 41... Qd2
{[%clk 0:00:20.4]} 42. Re7 {[%clk 0:00:02.7]} 42... Ra8 {[%clk 0:00:14.3]} 43.
Nf4 {[%clk 0:00:01.3]} 43... Rf8 {[%clk 0:00:10.9]} 44. Nh5 {[%clk 0:00:01.6]}
44... Bf6 {[%clk 0:00:09.7]} 45. Nxf6 {[%clk 0:00:01.9]} 45... Rxf6 {[%clk
0:00:10.6]} 46. Qg3 {[%clk 0:00:01.5]} 46... Qf4 {[%clk 0:00:10.8]} 47. Qxf4
{[%clk 0:00:01.7]} 47... Rxf4 {[%clk 0:00:11.7]} 48. Ng4 {[%clk 0:00:01.7]}
48... Rxg4+ {[%clk 0:00:11.7]} 49. Kf2 {[%clk 0:00:02.6]} 49... Rf4 {[%clk
0:00:12.1]} 0-1

[Event "Early-Titled-Tuesday-Blitz-October-10-2023"]
[Site "Chess.com"]
[Date "2023.10.10"]
[Round "5"]
[White "colegiodemadrid"]
[Black "Lady_Nika"]
[Result "0-1"]
[WhiteElo "2379"]
[BlackElo "2538"]
[TimeControl "180+1"]
[EndTime "8:54:38 PDT"]
[Termination "Lady_Nika won on time"]

1. e4 {[%clk 0:03:00.9]} 1... c6 {[%clk 0:02:58.8]} 2. Nc3 {[%clk 0:02:59.6]}
2... d5 {[%clk 0:02:58.7]} 3. Nf3 {[%clk 0:02:58.8]} 3... Nf6 {[%clk 0:02:57.1]}
4. e5 {[%clk 0:02:55.9]} 4... Ne4 {[%clk 0:02:57.1]} 5. d4 {[%clk 0:02:48]} 5...
Nxc3 {[%clk 0:02:51.9]} 6. bxc3 {[%clk 0:02:47]} 6... e6 {[%clk 0:02:52.2]} 7.
Be2 {[%clk 0:02:39.4]} 7... Be7 {[%clk 0:02:52.2]} 8. O-O {[%clk 0:02:38.6]}
8... O-O {[%clk 0:02:45.3]} 9. Be3 {[%clk 0:02:33.7]} 9... Nd7 {[%clk
0:02:44.8]} 10. Qd2 {[%clk 0:02:31.2]} 10... b5 {[%clk 0:02:44.8]} 11. Bg5
{[%clk 0:02:23.9]} 11... Nb6 {[%clk 0:02:41]} 12. Bd3 {[%clk 0:02:08.9]} 12...
Bxg5 {[%clk 0:02:35.1]} 13. Nxg5 {[%clk 0:02:06.5]} 13... h6 {[%clk 0:02:35]}
14. Nh7 {[%clk 0:01:41.3]} 14... Re8 {[%clk 0:02:33.9]} 15. Qf4 {[%clk 0:01:41]}
15... Nc4 {[%clk 0:02:28]} 16. Nf6+ {[%clk 0:01:34.9]} 16... Kh8 {[%clk
0:01:47.1]} 17. Nxe8 {[%clk 0:01:22.3]} 17... Qxe8 {[%clk 0:01:46.8]} 18. Qh4
{[%clk 0:01:12.1]} 18... Bb7 {[%clk 0:01:45.5]} 19. f4 {[%clk 0:01:11.1]} 19...
Nd2 {[%clk 0:01:09.9]} 20. Rf2 {[%clk 0:01:05]} 20... Ne4 {[%clk 0:01:08.9]} 21.
Bxe4 {[%clk 0:00:55.9]} 21... dxe4 {[%clk 0:01:08.5]} 22. f5 {[%clk 0:00:55.7]}
22... exf5 {[%clk 0:01:06.3]} 23. Rxf5 {[%clk 0:00:54.4]} 23... c5 {[%clk
0:01:06.7]} 24. Raf1 {[%clk 0:00:51.7]} 24... Qc6 {[%clk 0:01:03.2]} 25. Rxf7
{[%clk 0:00:40.9]} 25... cxd4 {[%clk 0:01:02.1]} 26. Qg4 {[%clk 0:00:31.1]}
26... Rg8 {[%clk 0:01:00]} 27. cxd4 {[%clk 0:00:27.7]} 27... Bc8 {[%clk
0:00:56.5]} 28. Qg3 {[%clk 0:00:20.5]} 28... Qxc2 {[%clk 0:00:48.9]} 29. Rf8
{[%clk 0:00:18.7]} 29... Qc4 {[%clk 0:00:46.4]} 30. Rxg8+ {[%clk 0:00:17]} 30...
Kxg8 {[%clk 0:00:46.4]} 31. Qh4 {[%clk 0:00:14.6]} 31... Qxd4+ {[%clk
0:00:45.9]} 32. Kh1 {[%clk 0:00:11.4]} 32... Be6 {[%clk 0:00:38.7]} 33. Qe7
{[%clk 0:00:10.5]} 33... Qxe5 {[%clk 0:00:34.4]} 34. Rf8+ {[%clk 0:00:09.2]}
34... Kh7 {[%clk 0:00:34.4]} 35. Rf1 {[%clk 0:00:08.5]} 35... e3 {[%clk
0:00:33.7]} 36. Qb4 {[%clk 0:00:06.8]} 36... e2 {[%clk 0:00:32.5]} 37. Qb1+
{[%clk 0:00:06.5]} 37... Kg8 {[%clk 0:00:30]} 38. Re1 {[%clk 0:00:05.3]} 38...
Bc4 {[%clk 0:00:29.5]} 39. Qc2 {[%clk 0:00:04.6]} 39... a5 {[%clk 0:00:28]} 40.
Qd2 {[%clk 0:00:04.5]} 40... a4 {[%clk 0:00:23.7]} 41. h3 {[%clk 0:00:04.6]}
41... Qg3 {[%clk 0:00:21.6]} 42. Qb4 {[%clk 0:00:02.7]} 42... Qf2 {[%clk
0:00:19.6]} 43. Qd2 {[%clk 0:00:01.2]} 43... a3 {[%clk 0:00:07.6]} 0-1

[Event "Early-Titled-Tuesday-Blitz-October-10-2023"]
[Site "Chess.com"]
[Date "2023.10.10"]
[Round "5"]
[White "juancruzarias"]
[Black "Legendinunknown"]
[Result "0-1"]
[WhiteElo "2634"]
[BlackElo "2828"]
[TimeControl "180+1"]
[EndTime "8:54:41 PDT"]
[Termination "Legendinunknown won by resignation"]

1. d4 {[%clk 0:02:48.4]} 1... Nf6 {[%clk 0:02:55.6]} 2. Nf3 {[%clk 0:02:48.8]}
2... e6 {[%clk 0:02:50.8]} 3. e3 {[%clk 0:02:48.9]} 3... c5 {[%clk 0:02:49.3]}
4. Bd3 {[%clk 0:02:48.3]} 4... b6 {[%clk 0:02:47.7]} 5. O-O {[%clk 0:02:46.2]}
5... Bb7 {[%clk 0:02:47.8]} 6. c4 {[%clk 0:02:46.5]} 6... Be7 {[%clk 0:02:47]}
7. Nc3 {[%clk 0:02:46.1]} 7... O-O {[%clk 0:02:46.5]} 8. d5 {[%clk 0:02:45.9]}
8... exd5 {[%clk 0:02:46.3]} 9. cxd5 {[%clk 0:02:46.1]} 9... d6 {[%clk
0:02:42.4]} 10. e4 {[%clk 0:02:46.1]} 10... a6 {[%clk 0:02:41.6]} 11. a4 {[%clk
0:02:45.2]} 11... Nbd7 {[%clk 0:02:41.5]} 12. Re1 {[%clk 0:02:40.5]} 12... Ng4
{[%clk 0:02:40.8]} 13. Bf4 {[%clk 0:02:34.2]} 13... Nge5 {[%clk 0:02:39.1]} 14.
Nxe5 {[%clk 0:02:32]} 14... Nxe5 {[%clk 0:02:39.3]} 15. Bf1 {[%clk 0:02:27.2]}
15... Bg5 {[%clk 0:02:34.6]} 16. Bg3 {[%clk 0:02:26]} 16... Bh4 {[%clk
0:02:33.1]} 17. Bxe5 {[%clk 0:02:19.1]} 17... dxe5 {[%clk 0:02:32.7]} 18. g3
{[%clk 0:02:19.3]} 18... Be7 {[%clk 0:02:31.5]} 19. Bh3 {[%clk 0:02:17.5]} 19...
g6 {[%clk 0:02:30.8]} 20. Qc2 {[%clk 0:02:13.6]} 20... Bd6 {[%clk 0:02:29.5]}
21. Nb1 {[%clk 0:02:06.2]} 21... Bc8 {[%clk 0:02:28.5]} 22. Bxc8 {[%clk
0:02:04.9]} 22... Qxc8 {[%clk 0:02:29.4]} 23. Nd2 {[%clk 0:02:05.1]} 23... b5
{[%clk 0:02:25]} 24. b3 {[%clk 0:02:03.9]} 24... Qb7 {[%clk 0:02:16.7]} 25. Ra2
{[%clk 0:01:59]} 25... Rfc8 {[%clk 0:02:15.8]} 26. Rea1 {[%clk 0:01:57.5]} 26...
Bf8 {[%clk 0:02:01.4]} 27. h4 {[%clk 0:01:46.5]} 27... h5 {[%clk 0:01:59.6]} 28.
Nb1 {[%clk 0:01:35.9]} 28... c4 {[%clk 0:01:52.5]} 29. axb5 {[%clk 0:01:32.6]}
29... Qxb5 {[%clk 0:01:52.1]} 30. bxc4 {[%clk 0:01:30.4]} 30... Rxc4 {[%clk
0:01:53]} 31. Qd1 {[%clk 0:01:14.2]} 31... Bb4 {[%clk 0:01:50.9]} 32. Kg2 {[%clk
0:00:37]} 32... Rxe4 {[%clk 0:01:38.7]} 33. Qf3 {[%clk 0:00:36.4]} 33... Rd4
{[%clk 0:01:33]} 34. Na3 {[%clk 0:00:34.7]} 34... Qxd5 {[%clk 0:01:29.3]} 35.
Nc2 {[%clk 0:00:32.2]} 35... e4 {[%clk 0:01:10.9]} 36. Qe3 {[%clk 0:00:25.4]}
36... Rc4 {[%clk 0:01:02.8]} 37. Nxb4 {[%clk 0:00:23.8]} 37... Rxb4 {[%clk
0:01:03.7]} 38. Rxa6 {[%clk 0:00:19.4]} 38... Rxa6 {[%clk 0:01:03.5]} 39. Rxa6
{[%clk 0:00:20.3]} 39... Rb3 {[%clk 0:01:01.8]} 40. Rd6 {[%clk 0:00:16.7]} 40...
Qxd6 {[%clk 0:00:47.3]} 41. Qxb3 {[%clk 0:00:17.3]} 41... Qe5 {[%clk 0:00:47.9]}
42. Qe3 {[%clk 0:00:17.8]} 42... Kg7 {[%clk 0:00:47.6]} 43. Kg1 {[%clk
0:00:18.4]} 43... Kf6 {[%clk 0:00:47.9]} 44. Kg2 {[%clk 0:00:19]} 44... Ke6
{[%clk 0:00:47.3]} 45. Kg1 {[%clk 0:00:19.5]} 45... f6 {[%clk 0:00:47.5]} 46.
Qh6 {[%clk 0:00:19.1]} 46... Kf5 {[%clk 0:00:46.7]} 47. Qe3 {[%clk 0:00:18.8]}
47... Qd6 {[%clk 0:00:45.3]} 48. Kh2 {[%clk 0:00:18.9]} 48... Qd3 {[%clk
0:00:43.3]} 49. Qf4+ {[%clk 0:00:19]} 49... Ke6 {[%clk 0:00:43.7]} 50. Kg2
{[%clk 0:00:19]} 50... Qe2 {[%clk 0:00:42.3]} 51. Qc7 {[%clk 0:00:16.7]} 51...
Qf3+ {[%clk 0:00:42.1]} 52. Kg1 {[%clk 0:00:17.2]} 52... e3 {[%clk 0:00:39.8]}
53. Qb6+ {[%clk 0:00:17.3]} 53... Kf5 {[%clk 0:00:39.5]} 54. Qc5+ {[%clk
0:00:15.9]} 54... Kg4 {[%clk 0:00:39]} 55. Qc2 {[%clk 0:00:05.4]} 55... exf2+
{[%clk 0:00:37.5]} 56. Kf1 {[%clk 0:00:04.7]} 56... Qh1+ {[%clk 0:00:36.9]} 0-1

[Event "Early-Titled-Tuesday-Blitz-October-10-2023"]
[Site "Chess.com"]
[Date "2023.10.10"]
[Round "5"]
[White "krzyzan94"]
[Black "mr_gustavo"]
[Result "0-1"]
[WhiteElo "2772"]
[BlackElo "2641"]
[TimeControl "180+1"]
[EndTime "8:54:43 PDT"]
[Termination "mr_gustavo won by checkmate"]

1. Nf3 {[%clk 0:02:55]} 1... d5 {[%clk 0:02:58.2]} 2. g3 {[%clk 0:02:54.9]} 2...
Bg4 {[%clk 0:02:54.7]} 3. Bg2 {[%clk 0:02:54.5]} 3... Nd7 {[%clk 0:02:51.3]} 4.
d4 {[%clk 0:02:50.5]} 4... e6 {[%clk 0:02:42]} 5. O-O {[%clk 0:02:49.3]} 5...
Ngf6 {[%clk 0:02:39.6]} 6. a4 {[%clk 0:02:34.6]} 6... a5 {[%clk 0:02:37.6]} 7.
c4 {[%clk 0:02:22.5]} 7... c6 {[%clk 0:02:36.9]} 8. b3 {[%clk 0:02:20.8]} 8...
Bd6 {[%clk 0:02:27.7]} 9. Nc3 {[%clk 0:02:20.4]} 9... h6 {[%clk 0:02:20.4]} 10.
h3 {[%clk 0:02:13.7]} 10... Bf5 {[%clk 0:02:19.5]} 11. Re1 {[%clk 0:02:03.6]}
11... Bb4 {[%clk 0:02:15.4]} 12. Bd2 {[%clk 0:02:02.7]} 12... O-O {[%clk
0:02:14.8]} 13. Ra2 {[%clk 0:01:56.2]} 13... Bh7 {[%clk 0:02:04.3]} 14. Qc1
{[%clk 0:01:30.1]} 14... Qe7 {[%clk 0:01:58.6]} 15. Nd1 {[%clk 0:01:05.1]} 15...
Ne4 {[%clk 0:01:55.4]} 16. Nc3 {[%clk 0:00:44]} 16... Nd6 {[%clk 0:01:26.9]} 17.
c5 {[%clk 0:00:41.6]} 17... Ne4 {[%clk 0:01:17.8]} 18. Nxe4 {[%clk 0:00:39.2]}
18... Bxe4 {[%clk 0:01:18.7]} 19. Bxb4 {[%clk 0:00:38.8]} 19... axb4 {[%clk
0:01:19.6]} 20. Qd2 {[%clk 0:00:32.6]} 20... b6 {[%clk 0:01:19.6]} 21. cxb6
{[%clk 0:00:31]} 21... Nxb6 {[%clk 0:01:20.5]} 22. Rc1 {[%clk 0:00:31.3]} 22...
Rfc8 {[%clk 0:01:19]} 23. Ne5 {[%clk 0:00:30.8]} 23... c5 {[%clk 0:00:50.2]} 24.
a5 {[%clk 0:00:23.5]} 24... Nd7 {[%clk 0:00:10.5]} 25. Nxd7 {[%clk 0:00:21.3]}
25... Qxd7 {[%clk 0:00:11.4]} 26. dxc5 {[%clk 0:00:20.5]} 26... Bxg2 {[%clk
0:00:11.9]} 27. Kxg2 {[%clk 0:00:20.4]} 27... Qb5 {[%clk 0:00:12.8]} 28. a6
{[%clk 0:00:14.3]} 28... Rxa6 {[%clk 0:00:10.9]} 29. Rxa6 {[%clk 0:00:14.1]}
29... Qxa6 {[%clk 0:00:11.8]} 30. Qxb4 {[%clk 0:00:14.6]} 30... Qxe2 {[%clk
0:00:12.4]} 31. Qd4 {[%clk 0:00:12.3]} 31... Qb5 {[%clk 0:00:12.7]} 32. b4
{[%clk 0:00:11.5]} 32... Qc6 {[%clk 0:00:13.1]} 33. Rb1 {[%clk 0:00:10.4]} 33...
Rb8 {[%clk 0:00:13.5]} 34. Ra1 {[%clk 0:00:07.9]} 34... Re8 {[%clk 0:00:07.3]}
35. Ra5 {[%clk 0:00:05.5]} 35... e5 {[%clk 0:00:07.4]} 36. Qc3 {[%clk
0:00:04.5]} 36... d4+ {[%clk 0:00:07.4]} 37. Qf3 {[%clk 0:00:04.6]} 37... e4
{[%clk 0:00:08.1]} 38. Qe2 {[%clk 0:00:02.4]} 38... e3+ {[%clk 0:00:08.3]} 39.
Kh2 {[%clk 0:00:02.9]} 39... d3 {[%clk 0:00:08.5]} 40. Qxd3 {[%clk 0:00:02.9]}
40... e2 {[%clk 0:00:09]} 41. Ra1 {[%clk 0:00:02.2]} 41... e1=Q {[%clk
0:00:08.5]} 42. Rxe1 {[%clk 0:00:02.2]} 42... Rxe1 {[%clk 0:00:09.4]} 43. f3
{[%clk 0:00:02.6]} 43... Qe6 {[%clk 0:00:07.8]} 44. h4 {[%clk 0:00:02]} 44...
Re2+ {[%clk 0:00:07.9]} 45. Kg1 {[%clk 0:00:02.1]} 45... Re1+ {[%clk 0:00:08.2]}
46. Kf2 {[%clk 0:00:02.7]} 46... Ra1 {[%clk 0:00:07]} 47. Qd8+ {[%clk
0:00:03.3]} 47... Kh7 {[%clk 0:00:07.2]} 48. Qd3+ {[%clk 0:00:03.9]} 48... g6
{[%clk 0:00:07.8]} 49. Qc3 {[%clk 0:00:03.6]} 49... Ra2+ {[%clk 0:00:08.7]} 50.
Kg1 {[%clk 0:00:02.9]} 50... Qe2 {[%clk 0:00:08.4]} 51. Qb3 {[%clk 0:00:02.3]}
51... Qg2# {[%clk 0:00:08.1]} 0-1